bitfinex/quotes_ETHUSD_20220731
["timestamp","ask_amount","ask_price","bid_price","bid_amount"]
[1659247791449,0.24049555,1693.7,1693.3,0.14738313]
[1659247793860,0.24049555,1693.7,1693.1,7.31694607]
[1659247794043,0.24049555,1693.7,1693.1,6.71499279]
[1659247794248,0.24049555,1693.7,1693.1,3.81694607]
[1659247795261,3.13854227,1693.7,1693.1,3.81694607]
[1659247795458,3.13854227,1693.7,1693.1,3.37354607]
[1659247795893,3.73854227,1693.7,1693.1,3.37354607]
[1659247797654,3.73592934,1693.7,1693.1,3.37354607]
[1659247798758,2.89804672,1693.6,1693.1,0.06234607]
[1659247798984,6.43774672,1693.6,1693.1,0.06234607]
[1659247799182,2.89804672,1693.5,1693.1,0.06234607]
[1659247800274,3.19804672,1693.5,1693.1,0.06234607]
[1659247803191,3.8397,1693.6,1693.1,0.06234607]
[1659247803397,3.3964,1693.6,1693.1,0.06234607]
[1659247804382,3.0964,1693.6,1693.1,0.06234607]
[1659247806726,3.0964,1693.6,1693.3,0.14738313]
[1659247808034,3.0964,1693.6,1693.1,0.2097292]
[1659247809024,3.0964,1693.6,1693.4,0.14738313]
[1659247812701,3.0964,1693.6,1693.1,0.06234607]
[1659247815822,3.0964,1693.6,1693.1,0.50574607]
[1659247818120,3.0964,1693.6,1693.1,0.06234607]
[1659247820946,5.99444672,1693.6,1693.1,0.06234607]
[1659247821209,5.99444672,1693.6,1692.9,3.0631]
[1659247821210,3.25107381,1693.5,1692.9,3.0631]
[1659247821365,3.25107381,1693.5,1692.9,3.0131]
[1659247821564,3.24816766,1693.5,1692.9,3.0131]
[1659247822454,3.54816766,1693.5,1692.9,3.0131]
[1659247823715,3.54816766,1693.5,1692.7,0.4935]
[1659247823716,6.39804672,1693.4,1692.7,0.4935]
[1659247823925,1.09642709,1693.3,1692.7,3.1993]
[1659247824162,3.25107381,1693.3,1692.7,3.1993]
[1659247824332,6.54469626,1693.3,1692.7,3.1993]
[1659247824746,3.55107381,1693.3,1692.7,3.1993]
[1659247825461,3.55107381,1693.3,1692.6,0.4435]
[1659247825629,3.55107381,1693.3,1692.5,14.9324]
[1659247825834,3.55107381,1693.3,1692.5,14.8824]
[1659247826973,3.55107381,1693.3,1692.6,0.09301608]
[1659247827175,0.4434,1693.2,1692.6,0.09301608]
[1659247827567,0.24049556,1693.1,1692.6,0.09301608]
[1659247827955,0.24049556,1693.1,1692.6,0.08992008]
[1659247827956,3.30889556,1693.1,1692.6,0.08992008]
[1659247828549,6.10769556,1693.1,1692.6,0.08992008]
[1659247829393,5.8672,1693.1,1692.6,3.13534993]
[1659247829559,0.4934,1693.3,1692.7,6.66330294]
[1659247829560,3.1184,1693.3,1692.7,6.66330294]
[1659247829774,3.0684,1693.3,1692.8,0.05912295]
[1659247831655,3.04739381,1693.4,1692.9,0.14738313]
[1659247832156,6.20579381,1693.4,1692.9,0.14738313]
[1659247835904,6.20579381,1693.4,1692.8,0.05912295]
[1659247836105,6.20579381,1693.4,1692.8,2.95716967]
[1659247837332,9.10384053,1693.4,1692.8,0.05912295]
[1659247837601,9.54714053,1693.4,1692.8,0.05912295]
[1659247842407,9.10384053,1693.4,1692.8,0.05912295]
[1659247846251,9.10384053,1693.4,1692.8,0.088601]
[1659247848772,2.89804672,1693.3,1692.8,0.088601]
[1659247851392,2.89532981,1693.3,1692.8,0.088601]
[1659247860058,0.04802484,1693.2,1692.7,3.0258]
[1659247860234,0.04802484,1693.2,1692.7,3.08492295]
[1659247861014,2.94607156,1693.2,1692.7,0.05912295]
[1659247861217,3.1928,1693.1,1692.7,0.05912295]
[1659247862115,3.1928,1693.1,1692.7,0.00912295]
[1659247868627,5.8923768,1693.0,1692.6,3.03095193]
[1659247868867,5.90340405,1693.0,1692.6,0.03095193]
[1659247869171,3.3162,1692.9,1692.6,0.03095193]
[1659247875797,3.2162,1692.9,1692.6,0.03095193]
[1659247879374,14.21346656,1693.1,1692.7,3.33068309]
[1659247879375,13.4825,1693.1,1692.7,3.33068309]
[1659247879567,13.5598,1693.1,1692.7,3.33068309]
[1659247881005,13.5598,1693.1,1692.7,0.00912294]
[1659247881915,0.05261687,1692.9,1692.4,0.05]
[1659247882119,6.19367108,1692.8,1692.2,0.05]
[1659247882270,2.89804672,1692.7,1692.0,4.0683]
[1659247882479,0.04802484,1692.6,1692.0,3.5746]
[1659247882678,3.19262484,1692.6,1692.0,3.5746]
[1659247882892,3.19262484,1692.6,1692.0,3.58372294]
[1659247882893,8.20365209,1692.6,1692.0,3.58372294]
[1659247883109,8.20365209,1692.6,1692.0,3.62086122]
[1659247883110,11.18355209,1692.6,1692.0,3.62086122]
[1659247883429,0.05261687,1692.3,1692.0,0.3]
[1659247883592,0.29859381,1692.2,1692.0,0.3]
[1659247883796,6.14261687,1692.1,1692.0,0.3]
[1659247884106,6.09,1692.1,1692.0,0.3]
[1659247885625,8.98804672,1692.1,1692.0,0.3]
[1659247885918,9.43174672,1692.1,1692.0,0.3]
[1659247886711,9.43174672,1692.1,1691.6,0.05]
[1659247886712,2.77119653,1691.9,1691.6,0.05]
[1659247887019,2.77119653,1691.9,1691.3,0.05]
[1659247887020,2.89804672,1691.8,1691.3,0.05]
[1659247887227,2.89804672,1691.8,1691.1,0.49638608]
[1659247887228,2.89804672,1691.8,1691.1,0.19738313]
[1659247887428,2.89804672,1691.8,1691.1,0.14738313]
[1659247887429,0.3355914,1691.7,1691.1,0.14738313]
[1659247887663,2.89804672,1691.6,1691.1,0.14738313]
[1659247889053,5.81214672,1691.6,1691.1,0.09738313]
[1659247889409,5.81214672,1691.6,1691.0,0.00912294]
[1659247890329,5.82317397,1691.6,1691.0,0.00912294]
[1659247890857,5.82317397,1691.6,1691.0,0.06179437]
[1659247892760,2.89804672,1691.5,1691.0,0.06179437]
[1659247894440,5.53815609,1691.5,1691.0,0.06179437]
[1659247894640,2.89804672,1691.4,1691.0,0.06179437]
[1659247896068,3.23363812,1691.4,1691.0,0.06179437]
[1659247897083,3.23363812,1691.4,1690.8,3.0]
[1659247897084,2.89804672,1691.3,1690.8,3.0]
[1659247897256,0.3355914,1691.2,1690.7,18.3204]
[1659247897461,0.3355914,1691.2,1690.7,15.3572]
[1659247897667,0.3355914,1691.2,1690.7,15.0572]
[1659247897896,0.3355914,1691.2,1690.7,15.07072241]
[1659247898075,0.3355914,1691.2,1690.7,8.07072241]
[1659247898740,0.3355914,1691.2,1690.7,0.01352241]
[1659247898940,3.24466537,1691.2,1690.7,0.01352241]
[1659247899141,3.54466537,1691.2,1690.6,4.54181811]
[1659247899579,3.54466537,1691.2,1690.4,11.954]
[1659247899786,3.54466537,1691.2,1690.7,0.09738313]
[1659247899787,2.8604,1691.1,1690.7,0.09738313]
[1659247900083,11.4097,1691.3,1691.0,0.29738313]
[1659247900289,3.0,1691.5,1691.0,0.29738313]
[1659247900446,3.6,1691.5,1691.0,0.29738313]
[1659247900642,3.6,1691.5,1690.8,3.55]
[1659247900643,3.6,1691.5,1690.9,0.10650607]
[1659247900839,3.3,1691.5,1691.1,0.09738313]
[1659247901284,14.2741,1691.6,1691.1,0.09738313]
[1659247901503,2.89804672,1691.5,1691.1,0.09738313]
[1659247901711,3.34184672,1691.5,1691.1,0.09738313]
[1659247901990,2.89804672,1691.4,1691.1,0.09738313]
[1659247904976,2.89804672,1691.4,1691.0,0.00669164]
[1659247905420,2.89804672,1691.4,1691.1,0.09738313]
[1659247905996,3.24466537,1691.5,1691.1,0.09738313]
[1659247908040,0.34661865,1691.5,1691.1,0.09738313]
[1659247908335,0.34661865,1691.5,1691.1,0.10650607]
[1659247908542,0.05,1691.7,1691.6,0.09738313]
[1659247908689,7.8754,1691.9,1691.6,0.09738313]
[1659247909105,7.8754,1691.9,1691.5,0.10650607]
[1659247909334,7.8754,1691.9,1691.6,0.09738313]
[1659247910610,8.1754,1691.9,1691.6,0.09738313]
[1659247911256,8.18642725,1691.9,1691.6,0.09738313]
[1659247913169,8.18344418,1691.9,1691.6,0.09738313]
[1659247913586,8.18344418,1691.9,1691.3,0.05]
[1659247913587,7.8754,1691.9,1691.4,0.09738313]
[1659247913882,7.8754,1691.9,1691.7,0.00912294]
[1659247914232,9.3465,1692.1,1691.7,0.00912294]
[1659247915233,15.2408245,1692.1,1691.7,0.00912294]
[1659247915652,12.24454672,1692.1,1691.7,0.00912294]
[1659247916061,2.89804672,1692.0,1691.7,0.00912294]
[1659247916588,2.89804672,1692.0,1691.4,0.14738313]
[1659247916798,2.89804672,1692.0,1691.4,0.10650607]
[1659247917155,9.3465,1692.1,1691.4,9.82885998]
[1659247917463,9.3465,1692.1,1691.5,0.4438]
[1659247917665,2.89804672,1692.0,1691.5,0.4438]
[1659247917904,5.8943245,1692.0,1691.4,0.55040607]
[1659247918264,2.89804672,1692.0,1691.4,0.55040607]
[1659247918863,2.89804672,1692.0,1691.4,0.56696749]
[1659247920407,0.01102725,1692.1,1691.5,2.89804672]
[1659247920569,2.7602,1692.2,1691.7,0.09738313]
[1659247920570,3.3602,1692.2,1691.7,0.09738313]
[1659247920762,3.3102,1692.2,1691.7,0.09738313]
[1659247921186,3.3102,1692.2,1692.0,0.09738313]
[1659247921588,13.7077,1692.3,1692.0,0.09738313]
[1659247921785,10.5654,1692.3,1692.2,0.09738313]
[1659247922108,0.4435,1692.9,1692.4,0.04738313]
[1659247922109,0.05,1692.7,1692.4,0.04738313]
[1659247922325,2.89804672,1692.7,1692.4,0.04738313]
[1659247922826,0.05,1693.0,1692.7,0.04738313]
[1659247923029,0.4433,1693.5,1692.7,0.04738313]
[1659247923030,0.05,1693.3,1693.0,0.04738313]
[1659247923227,10.469,1693.4,1693.1,0.04738313]
[1659247923535,10.469,1693.4,1693.3,0.04738313]
[1659247924339,3.45261865,1693.6,1693.3,0.04738313]
[1659247924691,0.05,1693.9,1693.5,0.04738313]
[1659247924915,8.2269,1694.2,1693.5,0.04738313]
[1659247925082,2.89804672,1694.1,1693.5,0.04738313]
[1659247925484,5.63324672,1694.1,1693.4,0.04738313]
[1659247925686,5.89149231,1694.0,1693.3,0.05]
[1659247925924,2.89804672,1693.9,1693.2,0.05]
[1659247926130,2.89804672,1693.9,1693.1,0.05]
[1659247926131,2.61827249,1693.8,1693.1,0.05]
[1659247926339,3.34134672,1693.7,1693.0,0.05]
[1659247926633,3.69728224,1693.6,1692.9,0.05]
[1659247926823,3.69728224,1693.6,1692.8,0.4935]
[1659247926824,3.34134672,1693.5,1692.8,0.4935]
[1659247927033,2.89804672,1693.4,1692.8,0.4435]
[1659247927192,0.66928436,1693.5,1692.8,3.35066966]
[1659247927393,0.07598436,1693.5,1692.9,2.5]
[1659247927622,0.07598436,1693.5,1692.8,3.35066966]
[1659247927856,0.34661865,1693.4,1692.8,0.45262294]
[1659247928925,0.34661865,1693.4,1692.8,3.35066966]
[1659247929167,0.34661865,1693.4,1692.9,0.04738313]
[1659247929474,3.3755,1693.6,1693.0,0.00912294]
[1659247929756,6.57016537,1693.6,1693.0,0.00912294]
[1659247931245,5.97016537,1693.6,1693.3,0.04738313]
[1659247931458,3.07211865,1693.6,1693.3,0.04738313]
[1659247931704,3.07211865,1693.6,1693.2,0.00912294]
[1659247934590,2.97211865,1693.6,1693.2,0.00912294]
[1659247937941,2.97211865,1693.6,1692.9,0.4935]
[1659247938142,2.97211865,1693.6,1692.9,0.4435]
[1659247938341,2.97211865,1693.6,1692.9,0.45262294]
[1659247938580,0.05,1693.7,1693.5,0.04738313]
[1659247938777,0.05,1693.7,1693.0,12.60778696]
[1659247938778,7.5956,1694.0,1693.6,0.24738313]
[1659247938985,7.5456,1694.0,1693.3,0.05]
[1659247939287,7.5456,1694.0,1693.2,0.29738313]
[1659247939288,2.89804672,1693.9,1693.2,0.29738313]
[1659247939446,6.25134672,1693.9,1693.2,0.24738313]
[1659247939840,6.25134672,1693.9,1693.5,0.04738313]
[1659247940072,6.58693812,1693.9,1693.5,0.04738313]
[1659247940840,6.59796537,1693.9,1693.5,0.04738313]
[1659247941279,6.59796537,1693.9,1693.2,0.09738313]
[1659247941453,6.59796537,1693.9,1693.2,0.04738313]
[1659247941858,3.69991865,1693.9,1693.2,2.94542985]
[1659247942056,3.25671865,1693.9,1693.3,0.00912294]
[1659247942257,3.25671865,1693.9,1693.5,0.04738313]
[1659247944110,3.25671865,1693.9,1693.7,0.04738313]
[1659247945329,0.34661865,1693.9,1693.7,0.04738313]
[1659247945528,0.34661865,1693.9,1693.5,0.04738313]
[1659247950659,0.34661865,1693.9,1693.7,0.04738313]
[1659247951072,0.05,1694.3,1694.0,8.04738313]
[1659247951280,16.27936,1694.6,1694.1,3.5]
[1659247951281,0.05,1694.6,1694.1,3.5]
[1659247951435,17.6683,1694.8,1693.9,6.85]
[1659247951436,18.1613,1694.8,1693.9,6.85]
[1659247951626,18.1613,1694.8,1694.0,6.44542985]
[1659247951830,14.3905,1694.8,1694.3,0.04738313]
[1659247952055,14.3905,1694.8,1694.4,0.04738313]
[1659247952274,11.5,1694.8,1694.7,3.04738313]
[1659247952471,0.35,1695.0,1694.7,3.04738313]
[1659247952472,0.3,1695.0,1694.7,3.04738313]
[1659247952847,0.3,1695.0,1694.7,5.94542985]
[1659247953167,0.3,1695.0,1694.8,2.90716966]
[1659247953742,0.3,1695.0,1694.7,3.443]
[1659247953946,0.3,1695.0,1694.7,3.0]
[1659247954397,0.3,1695.0,1694.5,0.4431]
[1659247954580,0.3,1695.0,1694.4,3.45222294]
[1659247954768,0.3,1695.0,1694.5,2.89804672]
[1659247955148,0.47598436,1695.0,1694.5,6.21686437]
[1659247955344,0.3,1695.0,1694.5,6.21686437]
[1659247955599,0.64661865,1695.0,1694.4,0.45222294]
[1659247955803,0.64661865,1695.0,1694.5,2.89804672]
[1659247956092,0.64661865,1695.0,1694.6,0.00912294]
[1659247957458,0.64661865,1695.0,1694.6,0.00585342]
[1659247961062,0.64661865,1695.0,1694.7,0.04738313]
[1659247961263,0.64661865,1695.0,1694.6,0.00585342]
[1659247964553,0.64661865,1695.0,1694.6,0.05323655]
[1659247964803,0.3,1695.0,1694.6,0.05323655]
[1659247965402,0.3,1695.0,1694.5,0.4431]
[1659247965560,2.89804672,1694.9,1694.3,8.6741]
[1659247965794,3.34094672,1694.9,1694.3,8.181]
[1659247966169,0.00326952,1694.8,1694.3,8.181]
[1659247968297,0.01429677,1694.8,1694.3,8.181]
[1659247968601,0.01429677,1694.8,1694.2,3.5]
[1659247968754,0.01429677,1694.8,1694.1,9.60138424]
[1659247968954,0.01429677,1694.8,1694.2,2.89804672]
[1659247969153,0.01429677,1694.8,1694.2,3.34114672]
[1659247970161,0.01429677,1694.8,1694.3,0.00585343]
[1659247971997,0.01429677,1694.8,1694.5,0.04738313]
[1659247974084,3.35534349,1694.8,1694.2,0.05]
[1659247974404,3.35534349,1694.8,1694.0,18.27667612]
[1659247974720,3.35534349,1694.8,1694.1,3.0]
[1659247975267,3.65534349,1694.8,1694.0,17.57472284]
[1659247975509,3.95534349,1694.8,1694.0,17.52472284]
[1659247976015,3.95534349,1694.8,1693.9,10.5323869]
[1659247976016,2.89804672,1694.7,1693.9,3.4932]
[1659247976205,2.89804672,1694.7,1693.8,0.4932]
[1659247976206,0.15261687,1694.4,1693.8,0.4932]
[1659247976403,0.15261687,1694.4,1693.8,3.34124672]
[1659247976578,0.05,1694.5,1693.7,14.266]
[1659247976810,0.05,1694.5,1693.6,0.4933]
[1659247976811,0.15261687,1694.3,1693.6,0.4933]
[1659247977001,3.23363812,1694.2,1693.5,0.39851828]
[1659247977201,3.23363812,1694.2,1693.4,11.4462]
[1659247977434,3.23363812,1694.2,1693.4,14.29424672]
[1659247978648,0.3355914,1694.2,1693.5,6.45128328]
[1659247978940,0.3355914,1694.2,1693.6,3.34134672]
[1659247979103,0.3355914,1694.2,1693.7,2.89804672]
[1659247980431,0.3355914,1694.2,1693.8,0.05323656]
[1659247980606,2.88692725,1694.3,1694.0,0.04738313]
[1659247981414,2.88300705,1694.3,1694.0,0.04738313]
[1659247981850,2.88300705,1694.3,1694.2,0.04738313]
[1659247982153,2.88300705,1694.3,1693.8,0.10323656]
[1659247982154,2.8719798,1694.3,1693.8,0.10323656]
[1659247982319,2.8719798,1694.3,1693.8,2.95128328]
[1659247983042,2.8719798,1694.3,1693.8,3.10390015]
[1659247983241,2.8719798,1694.3,1693.8,2.90390015]
[1659247983457,0.05,1694.5,1694.4,5.04738313]
[1659247983674,13.4067,1694.9,1694.4,8.37205421]
[1659247983878,10.2173,1694.9,1694.4,8.37205421]
[1659247984842,10.2173,1694.9,1694.5,0.04738313]
[1659247989163,10.2173,1694.9,1694.2,0.05]
[1659247989164,3.84355176,1694.8,1694.2,0.05]
[1659247989481,3.84355176,1694.8,1694.0,0.05]
[1659247989482,3.19804672,1694.7,1694.0,0.05]
[1659247989697,3.49804672,1694.7,1693.9,0.4932]
[1659247989910,0.34988817,1694.6,1693.9,0.4432]
[1659247990066,0.34988817,1694.6,1693.9,0.00585343]
[1659247990378,3.64114672,1694.5,1693.9,0.00585343]
[1659247990561,3.24793489,1694.4,1693.7,0.05]
[1659247990762,2.89804672,1694.3,1693.7,3.50585343]
[1659247991202,2.89804672,1694.3,1693.7,0.00585343]
[1659247991578,0.39988817,1694.4,1693.7,6.40390015]
[1659247991820,3.27248817,1694.4,1693.8,0.4432]
[1659247992025,3.27248817,1694.4,1693.8,0.44905343]
[1659247992387,11.32928817,1694.4,1693.8,0.00585343]
[1659247995129,11.32928817,1694.4,1693.9,6.21843096]
[1659247996552,11.32928817,1694.4,1693.9,6.26581409]
[1659247996866,11.32928817,1694.4,1693.9,6.70901409]
[1659247997074,11.32928817,1694.4,1693.9,0.4432]
[1659247997383,11.32928817,1694.4,1693.8,1.04905343]
[1659247997581,11.32928817,1694.4,1693.8,6.82506824]
[1659247997871,11.32928817,1694.4,1693.9,3.0]
[1659247999473,0.05,1694.6,1694.3,0.04738313]
[1659247999770,0.443,1694.7,1694.3,0.04738313]
[1659247999934,3.4799,1694.8,1694.1,3.3]
[1659248000132,5.93494672,1694.8,1694.1,3.3]
[1659248000658,8.64774672,1694.8,1694.1,3.0]
[1659248001287,9.24774672,1694.8,1694.0,10.50494672]
[1659248001582,9.24774672,1694.8,1694.0,11.05494672]
[1659248001792,9.24774672,1694.8,1694.0,3.19804672]
[1659248001942,9.24774672,1694.8,1694.0,2.89804672]
[1659248002540,9.24774672,1694.8,1694.0,5.89804672]
[1659248002879,0.34988817,1694.7,1694.1,0.00585343]
[1659248003092,0.50250504,1694.7,1694.1,0.00585343]
[1659248009963,0.34988817,1694.7,1694.1,0.00585343]
[1659248010558,0.15261687,1694.5,1694.1,0.00585343]
[1659248010718,0.15261687,1694.5,1693.8,11.2568]
[1659248010917,0.15261687,1694.5,1693.8,17.12581881]
[1659248011117,0.15261687,1694.5,1693.8,16.68261881]
[1659248012116,0.15261687,1694.5,1693.8,17.12581881]
[1659248012529,0.15261687,1694.5,1693.9,0.00585343]
[1659248013164,3.05066359,1694.5,1693.9,0.00585343]
[1659248013346,3.49376359,1694.5,1693.9,0.00585343]
[1659248014841,3.84365176,1694.5,1693.9,0.00585343]
[1659248016226,3.84365176,1694.5,1693.9,0.00844236]
[1659248017636,3.40055176,1694.5,1693.9,0.00844236]
[1659248022237,3.40055176,1694.5,1693.9,4.50844236]
[1659248024778,3.40055176,1694.5,1693.9,0.00844236]
[1659248024951,2.89804672,1694.4,1693.9,0.00844236]
[1659248025149,3.34114672,1694.4,1693.9,0.00844236]
[1659248025379,2.89804672,1694.3,1693.9,0.00453862]
[1659248025534,5.83064672,1694.3,1693.9,0.00453862]
[1659248025734,5.83064672,1694.3,1693.6,0.4933]
[1659248025972,5.83064672,1694.3,1693.6,1.0433]
[1659248026177,5.83064672,1694.3,1693.6,0.7433]
[1659248026488,5.83064672,1694.3,1693.6,0.4433]
[1659248026841,2.89804672,1694.2,1693.6,0.4433]
[1659248027089,3.5,1694.1,1693.4,3.7881]
[1659248027242,0.4432,1694.0,1693.4,3.2948]
[1659248027751,6.88394672,1694.1,1693.4,3.2948]
[1659248028084,7.18394672,1694.1,1693.4,3.2948]
[1659248028858,0.35379191,1694.0,1693.4,3.2948]
[1659248033169,0.35379191,1694.0,1693.4,3.34218313]
[1659248034673,0.05,1694.2,1693.9,0.04738313]
[1659248034898,8.1449,1694.5,1694.1,0.24738313]
[1659248034899,0.05,1694.5,1694.1,0.24738313]
[1659248035083,6.5282,1694.8,1694.1,0.24738313]
[1659248035084,0.05,1694.7,1694.1,9.9648348]
[1659248035269,9.06,1694.8,1694.2,2.89804672]
[1659248035493,9.06,1694.8,1694.2,3.34114672]
[1659248035898,9.06,1694.8,1694.3,6.39804672]
[1659248035899,5.8919,1694.8,1694.3,6.39804672]
[1659248036069,5.8919,1694.8,1694.3,2.89804672]
[1659248038336,2.9748,1694.8,1694.3,3.25343729]
[1659248048058,0.15261687,1693.8,1692.8,0.76763261]
[1659248048323,0.15261687,1693.4,1693.0,1.47563]
[1659248048525,0.15261687,1693.4,1692.7,4.83250733]
[1659248048526,2.89804672,1693.4,1692.7,4.83250733]
[1659248048817,3.0,1693.3,1692.5,4.29232884]
[1659248048984,2.65618066,1693.2,1692.5,4.29232884]
[1659248049182,0.4934,1693.3,1692.7,0.04738313]
[1659248049381,0.6,1693.4,1692.7,0.04738313]
[1659248049382,4.0933,1693.4,1692.7,0.04738313]
[1659248049610,6.901,1693.4,1692.7,0.04738313]
[1659248049983,2.8577,1693.4,1693.0,3.5]
[1659248050182,5.8395,1693.7,1693.3,0.04738313]
[1659248050183,5.8895,1693.7,1693.3,0.04738313]
[1659248050412,5.8395,1693.7,1693.3,0.04738313]
[1659248050924,0.924,1693.8,1693.3,0.04738313]
[1659248051129,1.224,1693.8,1693.3,0.04738313]
[1659248053030,1.224,1693.8,1693.3,4.54738313]
[1659248054196,8.35929057,1693.9,1693.3,4.54738313]
[1659248054391,8.65929057,1693.9,1693.3,4.54738313]
[1659248055001,8.65929057,1693.9,1693.3,0.04738313]
[1659248055337,8.65929057,1693.9,1693.1,0.4934]
[1659248055338,0.15261687,1693.5,1693.1,0.05]
[1659248055494,0.15261687,1693.2,1692.8,0.05]
[1659248055693,0.15261687,1693.2,1692.4,8.0347]
[1659248055694,3.05066359,1693.2,1692.5,0.05]
[1659248056008,0.15261687,1692.9,1692.3,0.05]
[1659248056218,0.15261687,1692.7,1692.1,3.4453]
[1659248056550,0.15261687,1692.7,1692.1,3.3953]
[1659248056834,0.15261687,1692.7,1691.9,0.05]
[1659248056835,3.64154672,1692.6,1691.9,0.05]
[1659248057046,3.64154672,1692.6,1691.7,0.05]
[1659248057047,2.74778368,1692.2,1691.7,0.05]
[1659248057216,2.74778368,1692.2,1691.6,11.5977]
[1659248057549,2.8976,1692.4,1691.6,11.1539]
[1659248057707,3.4976,1692.4,1691.6,11.1539]
[1659248058015,0.15261687,1692.1,1691.5,0.4938]
[1659248058227,0.15261687,1692.1,1691.4,0.4439]
[1659248058228,3.15261687,1692.1,1691.4,0.4439]
[1659248058402,3.15261687,1692.1,1691.3,0.4439]
[1659248058748,0.05,1692.1,1691.7,0.04738313]
[1659248058949,7.4962,1692.4,1691.9,0.04738313]
[1659248059155,2.8476,1692.4,1691.9,2.94542985]
[1659248059339,3.0416,1692.6,1692.1,0.04738313]
[1659248059552,3.0416,1692.6,1692.1,2.94542985]
[1659248059553,3.2916,1692.6,1692.1,2.94542985]
[1659248059759,2.9916,1692.6,1692.1,2.94542985]
[1659248059923,2.9916,1692.6,1692.4,0.04738313]
[1659248060269,2.9916,1692.6,1692.4,2.94542985]
[1659248061257,2.9916,1692.6,1692.4,0.04738313]
[1659248062659,2.9916,1692.6,1692.5,3.14542985]
[1659248062870,1.77578781,1692.6,1692.5,9.79902985]
[1659248063028,1.77578781,1692.6,1692.5,9.59902985]
[1659248063390,1.77578781,1692.6,1692.5,6.38902985]
[1659248064463,1.77578781,1692.6,1692.5,5.89804672]
[1659248066368,1.77578781,1692.6,1692.5,3.0]
[1659248066533,1.77578781,1692.6,1692.4,0.3]
[1659248066727,1.77578781,1692.6,1692.3,3.0]
[1659248066940,1.77578781,1692.6,1692.3,5.89804672]
[1659248067156,1.77578781,1692.6,1692.3,6.19804672]
[1659248067486,0.55800744,1692.9,1692.8,4.24738313]
[1659248067487,0.05,1692.9,1692.8,4.24738313]
[1659248067688,0.17598436,1693.2,1692.8,17.46718607]
[1659248067886,0.72508273,1693.3,1692.9,2.89804672]
[1659248068101,0.05,1693.5,1692.9,2.89804672]
[1659248068386,8.8251,1693.7,1693.2,0.04738313]
[1659248068688,8.3318,1693.7,1693.2,0.04738313]
[1659248068886,0.4432,1693.8,1693.5,0.04738313]
[1659248069091,0.05,1694.1,1693.5,0.04738313]
[1659248069387,0.4432,1694.0,1693.5,0.04738313]
[1659248070094,0.4432,1694.1,1693.5,0.04738313]
[1659248070387,0.05,1694.2,1693.8,0.04738313]
[1659248070597,1.77057,1694.7,1693.9,6.21823506]
[1659248070598,0.05,1694.4,1693.9,6.21823506]
[1659248070813,10.4686,1694.6,1693.9,6.21823506]
[1659248070814,10.632,1694.6,1693.9,6.21823506]
[1659248070963,10.93739057,1694.6,1693.9,6.21823506]
[1659248071468,10.93739057,1694.6,1693.9,2.89804672]
[1659248071791,5.89804672,1694.5,1693.7,0.05]
[1659248071947,3.24276107,1694.4,1693.6,0.05]
[1659248072147,3.24276107,1694.4,1693.5,0.4933]
[1659248072148,3.50872294,1694.3,1693.5,0.4933]
[1659248072391,2.89804672,1694.2,1693.4,0.4933]
[1659248072590,2.89804672,1694.2,1693.3,5.9874]
[1659248072591,0.1134,1694.1,1693.3,6.0374]
[1659248072746,0.1134,1694.1,1693.3,5.88544672]
[1659248072747,0.35539057,1694.0,1693.3,5.88544672]
[1659248072948,0.35539057,1694.0,1693.3,2.89804672]
[1659248073193,0.17598436,1693.9,1693.3,2.89804672]
[1659248074999,0.15261687,1693.8,1693.3,2.89804672]
[1659248076095,0.6,1693.9,1693.3,2.89804672]
[1659248076307,3.7634,1694.0,1693.3,2.89804672]
[1659248076458,3.7134,1694.0,1693.3,2.89804672]
[1659248077290,3.7134,1694.0,1693.4,0.04738313]
[1659248077460,3.6,1694.0,1693.4,2.94542985]
[1659248077658,3.6,1694.0,1693.4,2.89804672]
[1659248078960,0.35539057,1693.9,1693.4,2.89804672]
[1659248079159,0.15261687,1693.8,1693.1,14.8241]
[1659248079358,3.05066359,1693.8,1693.1,14.7741]
[1659248079767,3.05066359,1693.8,1693.0,3.0]
[1659248079971,3.05066359,1693.8,1693.1,7.0]
[1659248080170,2.77835898,1693.6,1692.9,0.05]
[1659248080354,2.89804672,1693.5,1692.7,0.05]
[1659248080561,0.1135,1693.4,1692.6,0.05]
[1659248080796,3.49804672,1693.3,1692.5,14.5504]
[1659248081004,11.19844672,1693.3,1692.5,14.5004]
[1659248081300,11.19844672,1693.3,1692.5,17.39844672]
[1659248082799,0.35539057,1693.2,1692.5,10.39844672]
[1659248084106,0.35539057,1693.2,1692.6,2.89804672]
[1659248086353,0.35539057,1693.2,1692.5,2.89804672]
[1659248086354,3.35539057,1693.2,1692.5,2.89804672]
[1659248086519,3.35539057,1693.2,1692.3,0.05]
[1659248086520,3.94144672,1693.1,1692.3,0.05]
[1659248086721,3.99144672,1693.1,1692.3,2.89804672]
[1659248087105,0.15261687,1692.9,1692.3,2.89804672]
[1659248087811,0.15261687,1692.9,1692.2,10.61294672]
[1659248088133,0.15261687,1692.7,1692.2,10.61294672]
[1659248088307,0.15261687,1692.7,1692.2,7.7149]
[1659248088500,0.4935,1692.9,1692.2,7.7149]
[1659248088501,0.05,1692.9,1692.2,7.7149]
[1659248088702,3.05066359,1692.9,1692.2,7.7149]
[1659248088928,3.05066359,1692.9,1692.0,0.4937]
[1659248088929,0.7435,1692.8,1692.0,0.4937]
[1659248089130,0.15261687,1692.7,1692.0,2.89804672]
[1659248089513,3.7935,1692.8,1692.0,2.89804672]
[1659248089747,3.7435,1692.8,1692.0,2.89804672]
[1659248090150,0.05,1692.9,1692.2,9.15542985]
[1659248090388,0.72508273,1693.1,1692.8,2.94542985]
[1659248090540,0.72508273,1693.1,1693.0,6.5]
[1659248090743,7.5207,1693.9,1693.0,13.16261481]
[1659248090988,7.5207,1693.9,1693.0,0.05]
[1659248090989,0.15261687,1693.5,1693.0,0.05]
[1659248091278,0.35539057,1693.4,1692.8,0.05]
[1659248091590,0.35539057,1693.4,1692.8,2.89804672]
[1659248097176,0.35539057,1693.4,1692.7,2.89804672]
[1659248099292,0.65539057,1693.4,1692.7,2.89804672]
[1659248102428,0.65539057,1693.4,1692.7,6.39804672]
[1659248105551,1.09869057,1693.4,1692.7,6.39804672]
[1659248105851,1.09869057,1693.4,1692.7,2.89804672]
[1659248106502,0.65539057,1693.4,1692.7,2.89804672]
[1659248107934,0.4434,1693.3,1692.6,2.9106]
[1659248108145,2.89804672,1693.2,1692.6,2.8606]